[Event "CCT Chesscom Classic-D2 2024"]
[Site "Online"]
[Date "2024.05.10"]
[Round "1"]
[White "LevonAronian"]
[Black "Vidit, Santosh Gujrathi"]
[Result "1/2-1/2"]
[ECO "C54"]
[WhiteElo "2730"]
[BlackElo "2722"]
[Annotator "TA"]
[PlyCount "96"]
[EventDate "2024.05.08"]
[EventType "k.o."]
[EventCountry "NET"]
[SourceTitle "playchess.com"]
[Source "ChessBase"]
[SourceQuality "1"]
[TimeControl "600+2"]

{[%evp 20,96,0,0,0,10,36,33,25,31,20,34,29,27,33,31,64,51,64,55,42,17,20,0,20,16,19,0,28,16,14,17,14,24,26,14,13,0,15,8,12,16,7,2,8,0,0,0,0,0,0,0,0,0,0,0,0,0,0,0,0,0,0,0,0,0,0,0,0,0,0,0,0,0,0,0,0,0,0]} 1. e4 {[%emt 0:00:06]} e5 {[%emt 0:00:04]} 2. Nf3 {[%emt 0:00:02]} Nc6 {[%emt 0:00:01]} 3. Bc4 {[%emt 0:00:01]} Bc5 {[%emt 0:00:01]} 4. d3 {[%emt 0:00:01]} Nf6 {[%emt 0:00:02]} 5. h3 {[%emt 0:00:01]} d6 {[%emt 0:00:02]} 6. c3 {[%emt 0:00:03]} a6 {[%emt 0:00:01]} 7. a4 $1 {[%emt 0:00:12][%mdl 4] is now more promising than 7.Bb3. C54: Giuoco Piano: 4 c3 Nf6, main lines with 5 d4 and 5 d3.} Ba7 {[%emt 0:00:02]} 8. Nbd2 {[%emt 0:00:16]} O-O {[%emt 0:00:01]} 9. Bb3 {[%emt 0:00:07]} Ne7 {[%emt 0:00:07]} 10. Nf1 {[%emt 0:00:05]} Ng6 {[%emt 0:00:27]} 11. Ng3 {[%emt 0:00:04]} h6 {[%emt 0:00:25]} 12. O-O {[%emt 0:00:39]} Re8 {[%emt 0:00:02]} 13. Re1 {[%emt 0:00:17]} Be6 {[%emt 0:00:04]} 14. d4 $146 {[%emt 0:00:40]} ({Predecessor:} 14. Bc2 d5 15. exd5 Qxd5 16. Ne4 Nxe4 17. dxe4 Qxd1 18. Rxd1 Rad8 19. Be3 Bxe3 20. fxe3 {0-1 Kang,D (2019)-Espinosa Veloz,E (2485) Titled Tuesday intern op 21st July blitz 2020 (5)}) 14... Bxb3 {[%emt 0:01:00]} 15. Qxb3 {[%emt 0:00:03]} Qd7 {[%emt 0:00:05]} 16. Be3 {[%emt 0:00:20]} (16. Qxb7 $2 {is the wrong capture.} Bb6 17. d5 Ne7 $19) 16... exd4 {[%emt 0:00:35]} 17. Bxd4 {[%emt 0:00:03]} Ne5 {[%emt 0:00:07]} 18. Nxe5 {[%emt 0:01:05]} (18. Qxb7 $2 {too greedy.} Nxf3+ 19. gxf3 Bxd4 $19 (19... Reb8 $2 20. Qxa7 Rxa7 21. Bxa7 $19)) 18... dxe5 {[%emt 0:00:01]} 19. Bxa7 {[%emt 0:00:02]} Rxa7 {[%emt 0:00:01]} 20. Qc4 {[%emt 0:00:12]} (20. Nf5 {is more complex.} Qc6 21. f3 a5 22. Qb5) 20... g6 {[%emt 0:00:31]} 21. Rad1 {[%emt 0:01:01]} Qe7 {[%emt 0:00:03]} 22. Nf1 {[%emt 0:00:03]} Raa8 {[%emt 0:00:11]} 23. Nd2 {[%emt 0:00:25]} a5 {[%emt 0:02:09]} 24. Qb5 {[%emt 0:00:06]} b6 {[%emt 0:00:09]} 25. Qc6 {[%emt 0:00:01]} Qe6 {[%emt 0:00:42]} 26. Qxe6 {[%emt 0:00:03]} Rxe6 {[%emt 0:00:01]} 27. Nc4 {[%emt 0:00:00]} Kf8 {[%emt 0:00:58]} 28. Ne3 {[%emt 0:00:02]} Ree8 {[%emt 0:00:29]} (28... Nxe4 29. Nd5 Rd6 30. Rxe4 $18) 29. f3 {[%emt 0:00:29]} Ke7 {[%emt 0:00:38]} 30. Kf2 {[%emt 0:00:48]} Red8 {[%emt 0:00:09]} 31. Ke2 {[%emt 0:00:11]} Ke6 {[%emt 0:00:11]} 32. h4 {[%emt 0:01:04]} Nh5 {[%emt 0:00:09]} 33. Nd5 {[%emt 0:00:34]} Nf4+ {[%emt 0:00:01]} 34. Nxf4+ {[%emt 0:00:01]} exf4 {[%emt 0:00:00]} 35. Rd4 {[%emt 0:00:01]} c5 {[%emt 0:00:02]} 36. Rxd8 {[%emt 0:00:39]} Rxd8 {[%emt 0:00:00]} 37. b3 {[%emt 0:00:01]} f6 {[%emt 0:00:24]} 38. Rb1 {[%emt 0:00:05]} h5 {[%emt 0:00:18]} 39. b4 {[%emt 0:00:13]} cxb4 {[%emt 0:00:06]} 40. cxb4 {[%emt 0:00:02]} Rd4 {[%emt 0:00:04]} 41. bxa5 {[%emt 0:00:01]} bxa5 {[%emt 0:00:01]} 42. Rb6+ {[%emt 0:00:00]} Kf7 {[%emt 0:00:05]} 43. Rb7+ {[%emt 0:00:01]} Kf8 {[%emt 0:00:04]} 44. Rb6 {[%emt 0:00:08]} Kg7 {[%emt 0:00:21]} 45. Rb7+ {[%emt 0:00:01]} Kg8 {[%emt 0:00:11]} 46. Rb6 {[%emt 0:00:02]} Kf7 {[%emt 0:00:12]} 47. Rb7+ {[%emt 0:00:02]} Kf8 {[%emt 0:00:00]} 48. Rb6 {[%emt 0:00:01]} Kf7 {[%emt 0:00:01]} 1/2-1/2

[Event "CCT Chesscom Classic-D2 2024"]
[Site "Online"]
[Date "2024.05.10"]
[Round "1"]
[White "Vidit, Santosh Gujrathi"]
[Black "LevonAronian"]
[Result "0-1"]
[ECO "B87"]
[WhiteElo "2722"]
[BlackElo "2728"]
[Annotator "ChessBase"]
[PlyCount "134"]
[EventDate "2024.05.08"]
[EventType "k.o."]
[EventCountry "NET"]
[SourceTitle "playchess.com"]
[Source "ChessBase"]
[SourceQuality "1"]
[TimeControl "600+2"]

1. e4 {[%emt 0:00:08]} c5 {[%emt 0:00:04]} 2. Nf3 {[%emt 0:00:01]} d6 {[%emt 0:00:00]} 3. d4 {[%emt 0:00:08]} cxd4 {[%emt 0:00:02]} 4. Nxd4 {[%emt 0:00:00]} Nf6 {[%emt 0:00:01]} 5. Nc3 {[%emt 0:00:00]} a6 {[%emt 0:00:01]} 6. Bc4 {[%emt 0:00:04]} e6 {[%emt 0:00:01]} 7. Be3 {[%emt 0:00:01]} Be7 {[%emt 0:00:09]} 8. Bb3 {[%emt 0:00:07]} b5 {[%emt 0:00:19]} 9. a3 {[%emt 0:00:11]} O-O {[%emt 0:00:12]} 10. Qe2 {[%emt 0:00:09]} Bb7 {[%emt 0:00:07]} 11. f3 {[%emt 0:00:13]} Nbd7 {[%emt 0:00:02]} 12. g4 {[%emt 0:00:25]} Rc8 {[%emt 0:00:28]} 13. O-O-O {[%emt 0:00:27]} Rxc3 {[%emt 0:00:27]} 14. bxc3 {[%emt 0:00:00]} Nb6 {[%emt 0:00:03]} 15. Kb1 {[%emt 0:00:15]} Nfd7 {[%emt 0:00:16]} 16. h4 {[%emt 0:00:05]} Ne5 {[%emt 0:00:10]} 17. h5 {[%emt 0:00:09]} Nec4 {[%emt 0:00:04]} 18. Bc1 {[%emt 0:00:45]} d5 {[%emt 0:00:11]} 19. h6 {[%emt 0:00:09]} g6 {[%emt 0:00:04]} 20. Bxc4 {[%emt 0:00:27]} Nxc4 {[%emt 0:00:02]} 21. exd5 {[%emt 0:00:26]} exd5 {[%emt 0:00:53]} 22. Rde1 {[%emt 0:01:44]} Bd6 {[%emt 0:00:33]} 23. f4 {[%emt 0:00:19]} Qa5 {[%emt 0:00:22]} 24. Nb3 {[%emt 0:00:04]} Qc7 {[%emt 0:01:00]} 25. Qf2 {[%emt 0:00:07]} a5 {[%emt 0:00:51]} 26. Qd4 {[%emt 0:00:05]} f6 {[%emt 0:00:01]} 27. Re6 {[%emt 0:00:43]} a4 {[%emt 0:02:32]} 28. Rxf6 {[%emt 0:00:12]} axb3 {[%emt 0:01:00]} 29. cxb3 {[%emt 0:00:05]} Rxf6 {[%emt 0:00:46]} 30. Qxf6 {[%emt 0:00:00]} d4 {[%emt 0:00:12]} 31. Re1 {[%emt 0:00:12]} Ne3 {[%emt 0:00:01]} 32. Bxe3 {[%emt 0:01:57]} dxe3 {[%emt 0:00:08]} 33. Rxe3 {[%emt 0:00:05]} Bf8 {[%emt 0:00:01]} 34. Re8 {[%emt 0:00:26]} Qf7 {[%emt 0:00:02]} 35. Qxf7+ {[%emt 0:00:19]} Kxf7 {[%emt 0:00:00]} 36. Rb8 {[%emt 0:00:01]} Be4+ {[%emt 0:00:01]} 37. Kb2 {[%emt 0:00:02]} Bd3 {[%emt 0:00:01]} 38. Rb7+ {[%emt 0:00:04]} Be7 {[%emt 0:00:03]} 39. a4 {[%emt 0:00:22]} bxa4 {[%emt 0:00:03]} 40. bxa4 {[%emt 0:00:00]} g5 {[%emt 0:00:02]} 41. fxg5 {[%emt 0:00:08]} Ke8 {[%emt 0:00:03]} 42. a5 {[%emt 0:00:12]} Bxg5 {[%emt 0:00:02]} 43. Rb6 {[%emt 0:00:03]} Kd7 {[%emt 0:00:03]} 44. a6 {[%emt 0:00:01]} Be3 {[%emt 0:00:03]} 45. a7 {[%emt 0:00:03]} Be4 {[%emt 0:00:00]} 46. Rb4 {[%emt 0:00:05]} Bc6 {[%emt 0:00:02]} 47. Ra4 {[%emt 0:00:03]} Ba8 {[%emt 0:00:02]} 48. Ra6 {[%emt 0:00:01]} Kc7 {[%emt 0:00:02]} 49. Re6 {[%emt 0:00:02]} Bg5 {[%emt 0:00:03]} 50. c4 {[%emt 0:00:04]} Kb7 {[%emt 0:00:01]} 51. Rd6 {[%emt 0:00:01]} Kc7 {[%emt 0:00:05]} 52. c5 {[%emt 0:00:01]} Bf4 {[%emt 0:00:01]} 53. Re6 {[%emt 0:00:01]} Bg5 {[%emt 0:00:02]} 54. Ka3 {[%emt 0:00:02]} Kb7 {[%emt 0:00:01]} 55. Rd6 {[%emt 0:00:01]} Kxa7 {[%emt 0:00:04]} 56. Rd7+ {[%emt 0:00:00]} Ka6 {[%emt 0:00:01]} 57. Rxh7 {[%emt 0:00:01]} Kb5 {[%emt 0:00:01]} 58. Ra7 {[%emt 0:00:03]} Be4 {[%emt 0:00:02]} 59. h7 {[%emt 0:00:01]} Bf6 {[%emt 0:00:01]} 60. g5 {[%emt 0:00:01]} Bd4 {[%emt 0:00:01]} 61. Re7 {[%emt 0:00:06]} Bg6 {[%emt 0:00:03]} 62. Rc7 {[%emt 0:00:01]} Be5 {[%emt 0:00:02]} 63. Kb3 {[%emt 0:00:02]} Bf5 {[%emt 0:00:04]} 64. Rf7 {[%emt 0:00:06]} Be6+ {[%emt 0:00:01]} 65. Kc2 {[%emt 0:00:01]} Bxf7 {[%emt 0:00:01]} 66. Kd3 {[%emt 0:00:01]} Bg6+ {[%emt 0:00:01]} 67. Ke3 {[%emt 0:00:00]} Kxc5 {[%emt 0:00:00]} 0-1

[Event "CCT Chesscom Classic-D2 2024"]
[Site "Online"]
[Date "2024.05.10"]
[Round "1"]
[White "Dubov, Daniil"]
[Black "Bluebaum, Matthias"]
[Result "1-0"]
[ECO "E04"]
[WhiteElo "2707"]
[BlackElo "2647"]
[Annotator "TA"]
[PlyCount "115"]
[EventDate "2024.05.08"]
[EventType "k.o."]
[EventCountry "NET"]
[SourceTitle "playchess.com"]
[Source "ChessBase"]
[SourceQuality "1"]
[TimeControl "600+2"]

{[%evp 13,115,16,35,25,32,29,32,45,66,75,70,47,52,54,72,58,169,129,120,122,130,81,76,90,72,73,81,78,75,64,116,114,118,68,81,86,154,153,161,162,159,156,156,160,164,177,177,179,156,126,136,129,177,176,178,178,184,182,199,195,249,271,288,277,348,385,402,354,1403,1497,1306,1443,4134,3952,4133,3679,2619,1468,29979,29980,29980,29981,29981,29981,29981,29982,29983,29984,29984,29985,29984,29980,29985,29984,29984,29985,29987,29984,29984,29985,29984,29985,29985,29986]} 1. d4 {[%emt 0:00:04]} Nf6 {[%emt 0:00:05]} 2. Nf3 {[%emt 0:00:01]} d5 {[%emt 0:00:02]} 3. c4 {[%emt 0:00:02]} e6 {[%emt 0:00:00]} 4. g3 {[%emt 0:00:01]} dxc4 {[%emt 0:00:04]} 5. Bg2 {[%emt 0:00:01]} Nc6 {[%emt 0:00:01]} 6. Qa4 {[%emt 0:00:13]} Bb4+ {[%emt 0:00:04]} 7. Bd2 {[%emt 0:00:01]} Nd5 {[%emt 0:00:02]} 8. Bxb4 {[%emt 0:00:03]} Ndxb4 {[%emt 0:00:01]} 9. Nc3 {[%emt 0:00:00]} a6 {[%emt 0:00:10]} 10. Ne5 {[%emt 0:02:09] White is slightly better.} O-O {[%emt 0:00:26]} 11. Nxc6 {[%emt 0:00:12]} Nxc6 {[%emt 0:00:02]} 12. Bxc6 {[%emt 0:00:01]} (12. Qxc4 Qxd4 (12... Nxd4 $2 13. O-O-O $18) 13. Qb3 Qe5 $15) 12... bxc6 {[%emt 0:00:00]} 13. Qxc4 {[%emt 0:00:03][%cal Oe1g1]} Rb8 {[%emt 0:00:18]} 14. O-O-O {[%emt 0:00:11][%cal Of2f4]} (14. Qxc6 $2 Bb7 (14... Qxd4 15. O-O $11) (14... Rxb2 15. O-O $11) 15. Qc5 Bxh1 $19) 14... e5 {[%emt 0:01:17]} 15. Qc5 {[%emt 0:00:23]} (15. Qxc6 $2 Bb7 (15... exd4 16. Qc5 $14) 16. Qc4 Bxh1 17. Rxh1 Qxd4 (17... exd4 $2 18. Ne4 $19) 18. Qxd4 exd4 $19) 15... exd4 {[%emt 0:00:32]} 16. Rxd4 {[%emt 0:00:02]} Qf6 {[%emt 0:00:00]} 17. Rf4 {[%emt 0:00:08]} (17. f3 $142) 17... Qd6 $16 {[%emt 0:01:18]} 18. Qxd6 {[%emt 0:00:18]} cxd6 {[%emt 0:00:00]} 19. Rd1 {[%emt 0:00:06]} d5 {[%emt 0:00:32]} 20. h4 {[%emt 0:00:07]} h6 {[%emt 0:00:25]} 21. e4 {[%emt 0:00:32]} g5 {[%emt 0:02:56] [#]} ({Black should play} 21... Be6 $14) 22. Rf6 $1 {[%emt 0:00:02]} gxh4 {[%emt 0:00:00]} 23. Rxh6 {[%emt 0:00:42]} (23. Rxc6 hxg3 24. Nxd5 (24. fxg3 dxe4 25. Nxe4 Kg7 $14) 24... gxf2) (23. gxh4 $16 Kh7 24. Rxc6 (24. exd5 cxd5 25. Rxd5 Kg7 $16) 24... dxe4 25. h5 (25. Nxe4 Rb4 $16)) 23... hxg3 {[%emt 0:00:10] [#]} 24. Rg1 $1 {[%emt 0:00:12]} f6 {[%emt 0:01:10]} (24... Kg7 25. Rxc6 dxe4 26. Rxg3+ (26. fxg3 Rh8 $11) 26... Kh7 27. Nxe4 $14) (24... Rd8 $142) 25. Rxg3+ {[%emt 0:00:06]} ({Of course not} 25. fxg3 $6 dxe4 26. Nxe4 Kg7 $11) 25... Kf7 {[%emt 0:00:00]} 26. exd5 {[%emt 0:00:08]} cxd5 {[%emt 0:00:03]} 27. Nxd5 {[%emt 0:00:04]} Ke6 {[%emt 0:00:00]} 28. Rh5 {[%emt 0:00:18]} Bb7 {[%emt 0:00:22]} 29. Nf4+ {[%emt 0:00:06]} Kd6 {[%emt 0:00:01]} 30. Rd3+ {[%emt 0:00:48]} Kc6 {[%emt 0:00:01]} 31. Nd5 {[%emt 0:00:07] White is much more active.} Rbd8 {[%emt 0:00:19]} 32. Kd2 {[%emt 0:00:32]} a5 {[%emt 0:00:28]} (32... Rf7 $16 {was called for.} 33. Nb4+ Kc7 34. Rxd8 Kxd8) 33. Kc3 $18 {[%emt 0:00:31]} Ba6 {[%emt 0:00:04]} 34. Ne7+ {[%emt 0:00:32]} Kb6 {[%emt 0:00:03]} 35. Rdd5 {[%emt 0:00:02]} Rfe8 {[%emt 0:00:08]} 36. Rhf5 {[%emt 0:00:21]} Kc7 {[%emt 0:00:06]} (36... Bb7 $142) 37. Rxd8 {[%emt 0:00:18]} Kxd8 {[%emt 0:00:01][%mdl 4096] Endgame. KRB-KRN} 38. Nc6+ {[%emt 0:00:13]} ({Don't take} 38. Rxa5 Bb7 $18) 38... Kc7 {[%emt 0:00:01]} 39. Nxa5 {[%emt 0:00:02]} Re6 {[%emt 0:00:04]} 40. Nb3 {[%emt 0:00:04]} Kb6 $2 {[%emt 0:00:02]} (40... Bc8 41. Rf4 Kd8) 41. Nc5 {[%emt 0:00:18]} Rc6 {[%emt 0:00:01]} 42. Kb4 {[%emt 0:00:06]} Bc8 {[%emt 0:00:01]} 43. Na4+ {[%emt 0:00:05]} Kc7 {[%emt 0:00:05]} 44. Rc5 {[%emt 0:00:02]} Bd7 {[%emt 0:00:00]} 45. Nc3 {[%emt 0:00:05]} Kd6 {[%emt 0:00:03]} 46. Nb5+ {[%emt 0:00:02] White mates.} Ke7 {[%emt 0:00:01]} 47. Rxc6 {[%emt 0:00:01]} Bxc6 {[%emt 0:00:00] KB-KN} 48. Kc5 {[%emt 0:00:04]} Be8 {[%emt 0:00:03]} 49. a4 {[%emt 0:00:03][%cal Ba2a4,Ba4a5,Ba5a6][%mdl 32]} Kd8 {[%emt 0:00:00]} 50. a5 {[%emt 0:00:01]} Bh5 {[%emt 0:00:01]} 51. b4 {[%emt 0:00:03][%cal Bb2b4,Bb4b5,Bb5b6][%mdl 32]} Kd7 {[%emt 0:00:02]} 52. Kb6 {[%emt 0:00:03]} Kc8 {[%emt 0:00:01]} 53. a6 {[%emt 0:00:02]} Bf3 {[%emt 0:00:01]} 54. Nd4 {[%emt 0:00:03]} Bd5 {[%emt 0:00:01]} 55. Ka7 {[%emt 0:00:02]} Kc7 {[%emt 0:00:01]} 56. b5 {[%emt 0:00:01]} Kd6 {[%emt 0:00:04]} 57. b6 {[%emt 0:00:01]} Kc5 {[%emt 0:00:00]} 58. Nf5 {[%emt 0:00:01] Weighted Error Value: White=0.08 (flawless) /Black=0.44.  Mistake:       	White=2     	Black=6      OK:         	White=17    	Black=8      Best:        	White=2     	Black=3      Strong:       	White=2     	---} 1-0

[Event "CCT Chesscom Classic-D2 2024"]
[Site "Online"]
[Date "2024.05.10"]
[Round "1"]
[White "Esipenko, Andrey"]
[Black "Rakhmanov, Aleksandr"]
[Result "1-0"]
[ECO "A25"]
[WhiteElo "2704"]
[BlackElo "2614"]
[Annotator "TA"]
[PlyCount "101"]
[EventDate "2024.05.08"]
[EventType "k.o."]
[EventCountry "NET"]
[SourceTitle "playchess.com"]
[Source "ChessBase"]
[SourceQuality "1"]
[TimeControl "600+2"]

{[%evp 31,101,10,20,-29,-22,-27,-27,-24,-32,-31,65,42,10,32,27,40,35,15,30,0,3,14,124,118,117,112,104,64,50,63,52,5,58,62,64,67,384,392,339,369,368,341,488,373,666,121,121,121,121,120,106,-8,8,4,12,8,8,8,14,0,0,0,525,444,482,379,1574,1390,29978,29978,29979,29980]} 1. c4 {[%emt 0:00:06]} e5 {[%emt 0:00:10]} 2. g3 {[%emt 0:00:05]} Nc6 {[%emt 0:00:10]} 3. Bg2 {[%emt 0:00:02]} Bc5 {[%emt 0:00:01]} 4. Nc3 {[%emt 0:00:05]} d6 {[%emt 0:00:23]} 5. e3 {[%emt 0:00:04]} h5 {[%emt 0:00:05]} 6. Nf3 {[%emt 0:00:29]} Nf6 {[%emt 0:00:36]} 7. a3 {[%emt 0:00:12]} a6 {[%emt 0:00:26]} 8. h3 {[%emt 0:00:06]} Ba7 {[%emt 0:00:13]} 9. b4 {[%emt 0:00:31]} Qe7 {[%emt 0:00:37]} 10. d3 {[%emt 0:00:42]} Bd7 {[%emt 0:01:59]} 11. Bb2 {[%emt 0:00:08]} Nd8 {[%emt 0:00:01]} 12. d4 {[%emt 0:01:04]} exd4 {[%emt 0:01:20]} 13. Nxd4 {[%emt 0:00:01]} Nc6 {[%emt 0:00:00]} 14. O-O {[%emt 0:00:22]} Ne5 {[%emt 0:00:39]} 15. Nd5 {[%emt 0:00:33]} Nxd5 {[%emt 0:00:07]} 16. cxd5 {[%emt 0:00:00]} Nc4 {[%emt 0:01:12]} 17. Bc3 {[%emt 0:00:01]} (17. Bc1 {is more appropriate.}) 17... Nxe3 $1 $11 {[%emt 0:01:03]} 18. fxe3 {[%emt 0:01:31]} Qxe3+ {[%emt 0:00:00]} 19. Kh2 $1 {[%emt 0:00:00]} Qxc3 {[%emt 0:00:03]} 20. Qe2+ {[%emt 0:00:01]} Kf8 {[%emt 0:00:24]} (20... Kd8 $1 $15 21. Rxf7 Re8 (21... Qxa1 22. Qe7+ Kc8 23. Qxd7+ Kb8 24. Qxc7#) 22. Ne6+ Bxe6 23. dxe6 Qxa1) 21. Ne6+ {[%emt 0:00:01]} (21. Rae1 $5 Re8 (21... Bxd4 22. Qe7+ Kg8 23. Qxf7+ Kh7 24. Be4+) 22. Ne6+ Kg8 23. Rf3 $18) 21... Kg8 {[%emt 0:00:19]} 22. Rac1 {[%emt 0:00:00]} Qe3 $1 {[%emt 0:00:27]} (22... Qxa3 $2 23. Rxc7 (23. Nxc7 Rf8 $11) 23... Be8 24. Rxb7 $18) 23. Qxe3 {[%emt 0:00:37]} Bxe3 {[%emt 0:00:01]} 24. Rxc7 {[%emt 0:00:00]} Be8 {[%emt 0:00:12]} 25. Re1 {[%emt 0:00:03]} Bf2 {[%emt 0:00:19]} 26. Re2 {[%emt 0:00:01]} fxe6 {[%emt 0:00:01]} (26... Ba7 $11) 27. Rxf2 $16 {[%emt 0:00:04]} e5 {[%emt 0:00:04]} 28. Rxb7 {[%emt 0:00:01]} Rh6 {[%emt 0:00:02]} 29. Rb6 {[%emt 0:00:28]} Bb5 {[%emt 0:00:03]} 30. Be4 {[%emt 0:00:38]} Rf8 {[%emt 0:00:01]} 31. Rxf8+ {[%emt 0:00:00]} Kxf8 {[%emt 0:00:00]} 32. a4 $1 {[%emt 0:00:00]} Bxa4 {[%emt 0:00:02]} 33. Rxa6 {[%emt 0:00:00]} Bb5 $2 {[%emt 0:00:01][%mdl 8192]} (33... Bd7 $14) 34. Ra5 $1 $18 {[%emt 0:00:03]} Bc4 {[%emt 0:00:01]} 35. b5 {[%emt 0:00:00]} Rf6 {[%emt 0:00:01] [#]} 36. Kg2 $1 {[%emt 0:00:29]} Bf1+ {[%emt 0:00:01]} (36... Ke7 $142 37. b6 Rf8 38. Ra7+ Kf6) 37. Kg1 $18 {[%emt 0:00:01]} Bxh3 $2 {[%emt 0:00:01]} (37... Bxb5 38. Rxb5 g5) 38. Ra1 $2 {[%emt 0:00:05]} (38. b6 $18 {is more deadly.} Rf1+ 39. Kh2) 38... Rf7 $16 {[%emt 0:00:09] [#]} 39. Ra8+ $1 {[%emt 0:00:07]} Ke7 {[%emt 0:00:00]} 40. b6 {[%emt 0:00:01]} Kf6 {[%emt 0:00:01]} 41. Rb8 {[%emt 0:00:05]} (41. Rd8 $16 Bf5 42. b7 (42. Rxd6+ Kg5 $14) 42... Rxb7 43. Rf8+ (43. Rxd6+ $2 {loses.} Ke7 $19) 43... Ke7 44. Rxf5) 41... Kg5 {[%emt 0:00:03]} 42. Bd3 {[%emt 0:00:11]} Kg4 {[%emt 0:00:01]} 43. b7 {[%emt 0:00:00]} Kxg3 {[%emt 0:00:02]} 44. Ba6 $1 {[%emt 0:00:00]} Rf2 $1 {[%emt 0:00:02]} 45. Rg8 {[%emt 0:00:11]} Rg2+ {[%emt 0:00:05]} 46. Kf1 $1 {[%emt 0:00:01]} Ra2+ $2 {[%emt 0:00:04][%mdl 8192]} (46... Rb2+ $1 $11 {and Black stays safe.} 47. Ke1 Rb1+ 48. Kd2 Bg2) 47. Ke1 $18 {[%emt 0:00:01]} Ra1+ {[%emt 0:00:00]} 48. Kd2 {[%emt 0:00:01]} Ra2+ $2 {[%emt 0:00:01]} (48... Rb1 49. b8=Q (49. b8=R Rxb8 50. Rxb8 Bg2 $18) 49... Rxb8 50. Rxb8 Bg2) 49. Kc1 $18 {[%emt 0:00:02]} Ra1+ {[%emt 0:00:01]} 50. Kb2 {[%emt 0:00:01]} Rxa6 {[%emt 0:00:01]} 51. b8=Q {[%emt 0:00:01]} (51. b8=R $2 Ra7 52. Rb3+ Kh4 $19) 1-0